fUSD/lending_fUSD_20250930
["ID","MTS","AMOUNT","RATE_DAILY","PERIOD"]
[388517712,1759229436209,-500.0,0.00019178,2]
[388517713,1759229436219,-500.0,0.00019178,2]
[388517714,1759229436229,-500.0,0.00019178,2]
[388517715,1759229436238,-1295.83,0.00019178,2]
[388517716,1759229436905,-500.0,0.00019178,2]
[388517717,1759229436932,-678.07,0.00019178,2]
[388517718,1759229436945,-2312.02,0.00019178,2]
[388517719,1759229436955,-310.91403671,0.00019178,2]
[388517720,1759229436966,-500.0,0.00019178,2]
[388517721,1759229436977,-2152.54,0.00019178,2]
[388517722,1759229436987,-500.0,0.00019178,2]
[388517723,1759229436997,-528.64,0.00019178,2]
[388517724,1759229437006,-500.0,0.00019178,2]
[388517725,1759229437017,-500.0,0.00019178,2]
[388517726,1759229437028,-738.02,0.00019178,2]
[388517727,1759229437038,-500.0,0.00019178,2]
[388517728,1759229437048,-2092.06,0.00019178,2]
[388517729,1759229437058,-632.78,0.00019178,2]
[388517730,1759229437068,-1627.33,0.00019178,2]
[388517731,1759229437078,-4605.91,0.00019178,2]
[388517732,1759229437088,-500.0,0.00019178,2]
[388517733,1759229437098,-613.18639014,0.00019178,2]
[388517734,1759229437108,-500.0,0.00019178,2]
[388517735,1759229437118,-1879.38,0.00019178,2]
[388517736,1759229437127,-500.0,0.00019178,2]
[388517737,1759229437137,-2651.09,0.00019178,2]
[388517738,1759229437147,-2540.63,0.00019178,2]
[388517739,1759229437157,-726.67,0.00019178,2]
[388517740,1759229437168,-4920.99,0.00019178,2]
[388517741,1759229437178,-963.78,0.00019178,2]
[388517742,1759229437188,-500.0,0.00019178,2]
[388517743,1759229437198,-3275.91,0.00019178,2]
[388517744,1759229437208,-500.0,0.00019178,2]
[388517745,1759229437218,-500.0,0.00019178,2]
[388517746,1759229437228,-500.0,0.00019178,2]
[388517747,1759229437238,-5571.5,0.00019178,2]
[388517748,1759229437248,-1620.0,0.00019178,2]
[388517749,1759229437258,-953.09,0.00019178,2]
[388517750,1759229437267,-500.0,0.00019178,2]
[388517751,1759229437277,-1161.3,0.00019178,2]
[388517752,1759229437287,-1076.14911321,0.00019178,2]
[388517753,1759229437334,-1993.03088679,0.00019178,2]
[388517754,1759229437345,-3407.01,0.00019178,2]
[388517756,1759229437355,-584.06,0.00019178,2]
[388517757,1759229437366,-1614.85,0.00019178,2]
[388517758,1759229437376,-584.06,0.00019178,2]
[388517760,1759229437386,-500.0,0.00019178,2]
[388517762,1759229437396,-500.0,0.00019178,2]
[388517765,1759229437407,-1571.85,0.00019178,2]
[388517766,1759229437417,-2992.17,0.00019178,2]
[388517767,1759229437428,-500.0,0.00019178,2]
[388517768,1759229437438,-3114.82,0.00019178,2]
[388517769,1759229437448,-1442.88,0.00019178,2]
[388517770,1759229437458,-500.0,0.00019178,2]
[388517772,1759229437468,-500.0,0.00019178,2]
[388517775,1759229437479,-4013.35,0.00019178,2]
[388517776,1759229437489,-500.0,0.00019178,2]
[388517778,1759229437501,-500.0,0.00019178,2]
[388517779,1759229437511,-500.0,0.00019178,2]
[388517780,1759229437522,-665.76837452,0.00019178,2]
[388517781,1759229437540,-3538.39162548,0.00019178,2]
[388517782,1759229437553,-3222.33,0.00019178,2]
[388517783,1759229437563,-500.0,0.00019178,2]
[388517784,1759229437577,-1897.81,0.00019178,2]
[388517785,1759229437588,-3987.72,0.00019178,2]
[388517786,1759229437600,-2108.88,0.00019178,2]
[388517787,1759229437612,-1638.52,0.00019178,2]
[388517788,1759229437624,-509.32,0.00019178,2]
[388517789,1759229437634,-343.22747644,0.00019178,2]
[388517790,1759229437644,-3068.82491457,0.00019178,2]
[388517791,1759229437689,-1441.77508543,0.00019178,2]
[388517792,1759229437706,-500.0,0.00019178,2]
[388517793,1759229437717,-12.30191301,0.00019178,2]
[388517794,1759229437876,-487.69808699,0.00019178,2]
[388517795,1759229437887,-500.0,0.00019178,2]
[388517796,1759229437896,-1517.22,0.00019178,2]
[388517797,1759229437906,-1475.66,0.00019178,2]
[388517798,1759229437916,-1169.30693602,0.00019178,2]
[388517800,1759229440352,-2655.68306398,0.00019178,2]
[388517801,1759229440362,-3479.68,0.00019178,2]
[388517802,1759229440372,-572.97,0.00019178,2]
[388517803,1759229440382,-500.0,0.00019178,2]
[388517804,1759229440391,-2474.71,0.00019178,2]
[388517805,1759229440401,-500.0,0.00019178,2]
[388517806,1759229440411,-754.97002512,0.00019178,2]
[388517807,1759229440435,-784.500026,0.00019178,2]
[388517808,1759229440457,-507.00297493,0.00019178,2]
[388517809,1759229440468,-342.36697395,0.00019178,2]
[388517810,1759229440477,-500.0,0.00019178,2]
[388517811,1759229440486,-500.0,0.00019178,2]
[388517812,1759229440495,-505.37,0.00019178,2]
[388517813,1759229440504,-500.0,0.00019178,2]
[388517814,1759229440513,-3026.64,0.00019178,2]
[388517815,1759229440522,-2565.35,0.00019178,2]
[388517816,1759229440532,-500.0,0.00019178,2]
[388517817,1759229440546,-3457.26,0.00019178,2]
[388517818,1759229440555,-673.85,0.00019178,2]
[388517819,1759229440564,-500.0,0.00019178,2]
[388517820,1759229440574,-500.0,0.00019178,2]
[388517821,1759229440585,-644.79,0.00019178,2]
[388517822,1759229441040,-500.0,0.00019178,2]
[388517823,1759229441051,-2558.09,0.00019178,2]
[388517824,1759229441061,-1403.16,0.00019178,2]
[388517825,1759229441071,-3323.12302605,0.00019178,2]
[388517826,1759229441085,-1676.45697395,0.00019178,2]
[388517827,1759229441094,-3009.13,0.00019178,2]
[388517828,1759229441104,-500.0,0.00019178,2]
[388517829,1759229441114,-3861.77,0.00019178,2]
[388517830,1759229441123,-2702.01,0.00019178,2]
[388517831,1759229441133,-500.0,0.00019178,2]
[388517832,1759229441143,-500.0,0.00019178,2]
[388517833,1759229441154,-500.0,0.00019178,2]
[388517834,1759229441163,-1349.02,0.00019178,2]
[388517835,1759229441173,-2443.93,0.00019178,2]
[388517836,1759229441183,-1567.57,0.00019178,2]
[388517837,1759229441193,-500.0,0.00019178,2]
[388517838,1759229441203,-1948.54,0.00019178,2]
[388517839,1759229441213,-500.0,0.00019178,2]
[388517840,1759229441223,-930.0,0.00019178,2]
[388517841,1759229441234,-500.0,0.00019178,2]
[388517842,1759229441243,-11.57302605,0.00019178,2]
[388517843,1759229441754,-260.4862038,0.00019178,2]
[388517844,1759229441786,-254.66915963,0.00019178,2]
[388517845,1759229441882,-400.0,0.00019178,2]
[388517846,1759229441894,-331.11161052,0.00019178,2]
[388517847,1759229441904,-3859.11,0.00019178,2]
[388517848,1759229441913,-501.99,0.00019178,2]
[388517849,1759229441923,-500.0,0.00019178,2]
[388517850,1759229441933,-500.0,0.00019178,2]
[388517851,1759229441944,-500.0,0.00019178,2]
[388517852,1759229441953,-500.0,0.00019178,2]
[388517853,1759229441962,-3256.0,0.00019178,2]
[388517854,1759229441972,-500.0,0.00019178,2]
[388517855,1759229441983,-500.0,0.00019178,2]
[388517856,1759229441992,-11054.141626,0.00019178,2]
[388517857,1759229442002,-500.0,0.00019178,2]
[388517858,1759229442011,-500.0,0.00019178,2]
[388517859,1759229442021,-500.0,0.00019178,2]
[388517860,1759229442031,-500.0,0.00019178,2]
[388517861,1759229442040,-572.73,0.00019178,2]
[388517862,1759229442049,-526.741572,0.00019178,2]
[388517863,1759229442060,-466.268616,0.00019178,2]
[388517864,1759229442070,-453.195687,0.00019178,2]
[388517865,1759229442079,-500.0,0.00019178,2]
[388517866,1759229442088,-5088.103971,0.00019178,2]
[388517867,1759229442097,-3245.68,0.00019178,2]
[388517868,1759229442107,-3354.66,0.00019178,2]
[388517869,1759229442116,-841.53,0.00019178,2]
[388517870,1759229442126,-9375.312663,0.00019178,2]
[388517871,1759229442136,-4810.77,0.00019178,2]
[388517872,1759229442145,-500.0,0.00019178,2]
[388517873,1759229442155,-500.0,0.00019178,2]
[388517874,1759229442164,-1945.06,0.00019178,2]
[388517875,1759229442174,-500.0,0.00019178,2]
[388517876,1759229442183,-500.0,0.00019178,2]
[388517877,1759229442192,-972.34,0.00019178,2]
[388517878,1759229442202,-4044.88,0.00019178,2]
[388517879,1759229442212,-500.0,0.00019178,2]
[388517880,1759229442222,-500.0,0.00019178,2]
[388517881,1759229442231,-3601.59,0.00019178,2]
[388517882,1759229442240,-1560.65,0.00019178,2]
[388517883,1759229442250,-500.0,0.00019178,2]
[388517884,1759229442259,-500.0,0.00019178,2]
[388517885,1759229442270,-3824.04,0.00019178,2]
[388517886,1759229442279,-500.0,0.00019178,2]
[388517887,1759229442288,-2772.0,0.00019178,2]
[388517888,1759229442297,-3314.61,0.00019178,2]
[388517889,1759229442306,-500.0,0.00019178,2]
[388517890,1759229442316,-500.0,0.00019178,2]
[388517891,1759229442325,-500.0,0.00019178,2]
[388517892,1759229442334,-500.0,0.00019178,2]
[388517893,1759229442343,-1289.86,0.00019178,2]
[388517894,1759229442353,-500.0,0.00019178,2]
[388517895,1759229442362,-3345.16529755,0.00019178,2]
[388517896,1759229442435,-1071.78470245,0.00019178,2]
[388517897,1759229442444,-762.89845755,0.00019178,2]
[388517898,1759229442455,-157.76154245,0.00019178,2]
[388517899,1759229442464,-520.78,0.00019178,2]
[388517900,1759229442474,-178.61959411,0.00019178,2]
[388517901,1759229442485,-321.38040589,0.00019178,2]
[388517902,1759229442494,-820.12,0.00019178,2]
[388517903,1759229442504,-500.0,0.00019178,2]
[388517904,1759229442514,-500.0,0.00019178,2]
[388517906,1759229442523,-1813.57,0.00019178,2]
[388517908,1759229442532,-500.0,0.00019178,2]
[388517910,1759229442544,-500.0,0.00019178,2]
[388517911,1759229442554,-500.0,0.00019178,2]
[388517912,1759229442564,-500.0,0.00019178,2]
[388517913,1759229442573,-500.0,0.00019178,2]
[388517914,1759229442585,-519.2,0.00019178,2]
[388517915,1759229442594,-4132.95,0.00019178,2]
[388517916,1759229442604,-500.0,0.00019178,2]
[388517917,1759229442615,-500.0,0.00019178,2]
[388517918,1759229442625,-2261.66,0.00019178,2]
[388517919,1759229442635,-1886.56,0.00019178,2]
[388517920,1759229442644,-500.0,0.00019178,2]
[388517921,1759229442654,-500.0,0.00019178,2]
[388517922,1759229442663,-4201.83,0.00019178,2]
[388517923,1759229442673,-500.0,0.00019178,2]
[388517924,1759229442682,-1812.61,0.00019178,2]
[388517925,1759229442692,-500.0,0.00019178,2]
[388517926,1759229442701,-3195.49,0.00019178,2]
[388517927,1759229442711,-500.0,0.00019178,2]
[388517928,1759229442720,-676.95,0.00019178,2]
[388517929,1759229442730,-500.0,0.00019178,2]
[388517930,1759229442740,-500.0,0.00019178,2]
[388517931,1759229442749,-3668.1,0.00019178,2]
[388517932,1759229442759,-151.0,0.00019178,2]
[388517933,1759229442770,-500.0,0.00019178,2]
[388517934,1759229442780,-2900.77,0.00019178,2]
[388517935,1759229442792,-2118.81,0.00019178,2]
[388517936,1759229442804,-655.09,0.00019178,2]
[388517937,1759229442814,-2089.56,0.00019178,2]
[388517938,1759229442823,-922.38,0.00019178,2]
[388517939,1759229442834,-3463.33,0.00019178,2]
[388517940,1759229442844,-1940.11,0.00019178,2]
[388517941,1759229442853,-4275.7,0.00019178,2]
[388517942,1759229442863,-679.11,0.00019178,2]
[388517943,1759229442872,-544.91,0.00019178,2]
[388517944,1759229442882,-1016.05,0.00019178,2]
[388517945,1759229442891,-500.0,0.00019178,2]
[388517946,1759229442900,-151.0,0.00019178,2]
[388517947,1759229442910,-500.0,0.00019178,2]
[388517948,1759229442921,-1760.22,0.00019178,2]
[388517949,1759229442930,-151.0,0.00019178,2]
[388517950,1759229442939,-500.0,0.00019178,2]
[388517951,1759229442949,-151.0,0.00019178,2]
[388517952,1759229442958,-3627.99,0.00019178,2]
[388517953,1759229442967,-500.0,0.00019178,2]
[388517954,1759229442977,-500.0,0.00019178,2]
[388517955,1759229442987,-1950.18,0.00019178,2]
[388517956,1759229442995,-500.0,0.00019178,2]
[388517957,1759229443005,-500.0,0.00019178,2]
[388517958,1759229443015,-1680.64,0.00019178,2]
[388517959,1759229443024,-500.0,0.00019178,2]
[388517960,1759229443034,-817.73,0.00019178,2]
[388517961,1759229443044,-4041.46,0.00019178,2]
[388517962,1759229443054,-1020.94,0.00019178,2]
[388517963,1759229443064,-738.48,0.00019178,2]
[388517964,1759229443074,-1635.05,0.00019178,2]
[388517965,1759229443084,-778.16,0.00019178,2]
[388517966,1759229443093,-500.0,0.00019178,2]
[388517967,1759229443103,-500.0,0.00019178,2]
[388517968,1759229443112,-161.106475,0.00019178,2]
[388517969,1759229443122,-161.106475,0.00019178,2]
[388517970,1759229443133,-828.518557,0.00019178,2]
[388517971,1759229443143,-1262.36,0.00019178,2]
[388517972,1759229443153,-2586.44,0.00019178,2]
[388517973,1759229443162,-2469.7,0.00019178,2]
[388517974,1759229443172,-161.106475,0.00019178,2]
[388517975,1759229443182,-1006.53,0.00019178,2]
[388517977,1759229443191,-828.518557,0.00019178,2]
[388517980,1759229443201,-161.106475,0.00019178,2]
[388517982,1759229443211,-2041.19,0.00019178,2]
[388517983,1759229443222,-1745.79,0.00019178,2]
[388517985,1759229443233,-500.0,0.00019178,2]
[388517987,1759229443244,-828.518557,0.00019178,2]
[388517990,1759229443255,-500.0,0.00019178,2]
[388517992,1759229443265,-500.0,0.00019178,2]
[388517993,1759229443276,-828.518557,0.00019178,2]
[388517994,1759229443287,-440.561884,0.00019178,2]
[388517995,1759229443297,-511.8634815,0.00019178,2]
[388517996,1759229443307,-440.561884,0.00019178,2]
[388517997,1759229443319,-158.824168,0.00019178,2]
[388517998,1759229443329,-500.0,0.00019178,2]
[388517999,1759229443341,-440.561884,0.00019178,2]
[388518000,1759229443351,-158.824168,0.00019178,2]
[388518001,1759229443361,-500.0,0.00019178,2]
[388518002,1759229443371,-4220.32,0.00019178,2]
[388518003,1759229443382,-500.0,0.00019178,2]
[388518004,1759229443393,-440.561884,0.00019178,2]
[388518005,1759229443403,-158.824168,0.00019178,2]
[388518006,1759229443414,-500.0,0.00019178,2]
[388518007,1759229443423,-500.0,0.00019178,2]
[388518008,1759229443434,-158.824168,0.00019178,2]
[388518009,1759229443444,-1324.96,0.00019178,2]
[388518010,1759229443454,-1158.13,0.00019178,2]
[388518011,1759229443464,-500.0,0.00019178,2]
[388518012,1759229443475,-965.72,0.00019178,2]
[388518013,1759229443485,-1295.63,0.00019178,2]
[388518014,1759229443495,-262.156415,0.00019178,2]
[388518015,1759229443505,-500.0,0.00019178,2]
[388518016,1759229443515,-3280.21,0.00019178,2]
[388518017,1759229443526,-262.156415,0.00019178,2]
[388518018,1759229443538,-262.156415,0.00019178,2]
[388518019,1759229443550,-151.0,0.00019178,2]
[388518020,1759229443560,-151.0,0.00019178,2]
[388518021,1759229443571,-165.70266,0.00019178,2]
[388518022,1759229443583,-262.156415,0.00019178,2]
[388518023,1759229443593,-151.0,0.00019178,2]
[388518024,1759229443604,-1394.61,0.00019178,2]
[388518025,1759229443617,-1240.6,0.00019178,2]
[388518026,1759229443627,-500.0,0.00019178,2]
[388518027,1759229443637,-500.0,0.00019178,2]
[388518028,1759229443648,-3738.7,0.00019178,2]
[388518029,1759229443658,-697.59,0.00019178,2]
[388518030,1759229443667,-151.0,0.00019178,2]
[388518031,1759229443677,-4167.55,0.00019178,2]
[388518032,1759229443688,-500.0,0.00019178,2]
[388518033,1759229443698,-2440.31,0.00019178,2]
[388518034,1759229443708,-611.0,0.00019178,2]
[388518035,1759229443719,-1468.45,0.00019178,2]
[388518036,1759229443729,-219.398648,0.00019178,2]
[388518037,1759229443740,-500.0,0.00019178,2]
[388518038,1759229443751,-500.0,0.00019178,2]
[388518039,1759229443762,-500.0,0.00019178,2]
[388518040,1759229443772,-500.0,0.00019178,2]
[388518041,1759229443784,-219.398648,0.00019178,2]
[388518042,1759229443797,-219.398648,0.00019178,2]
[388518043,1759229443806,-1228.075247,0.00019178,2]
[388518044,1759229443816,-1228.075247,0.00019178,2]
[388518045,1759229443826,-219.398648,0.00019178,2]
[388518046,1759229443835,-1228.075247,0.00019178,2]
[388518047,1759229443846,-151.0,0.00019178,2]
[388518048,1759229443857,-500.0,0.00019178,2]
[388518049,1759229443868,-500.0,0.00019178,2]
[388518050,1759229443878,-1228.075247,0.00019178,2]
[388518051,1759229443888,-500.0,0.00019178,2]
[388518052,1759229443898,-1224.89,0.00019178,2]
[388518053,1759229443909,-1167.41,0.00019178,2]
[388518054,1759229443920,-500.0,0.00019178,2]
[388518055,1759229443930,-673.75,0.00019178,2]
[388518056,1759229443941,-151.0,0.00019178,2]
[388518057,1759229443951,-2687.1,0.00019178,2]
[388518058,1759229443961,-500.0,0.00019178,2]
[388518059,1759229443970,-500.0,0.00019178,2]
[388518060,1759229443981,-500.0,0.00019178,2]
[388518061,1759229443991,-281.117518,0.00019178,2]
[388518062,1759229444001,-3057.57,0.00019178,2]
[388518063,1759229444014,-500.0,0.00019178,2]
[388518064,1759229444025,-2358.77,0.00019178,2]
[388518065,1759229444037,-500.0,0.00019178,2]
[388518066,1759229444048,-500.0,0.00019178,2]
[388518067,1759229444059,-580.24,0.00019178,2]
[388518068,1759229444069,-151.0,0.00019178,2]
[388518069,1759229444079,-1993.71,0.00019178,2]
[388518070,1759229444089,-1646.7,0.00019178,2]
[388518071,1759229444099,-2547.65,0.00019178,2]
[388518072,1759229444108,-151.0,0.00019178,2]
[388518073,1759229444118,-151.0,0.00019178,2]
[388518074,1759229444127,-2862.36,0.00019178,2]
[388518075,1759229444137,-500.0,0.00019178,2]
[388518076,1759229444146,-500.0,0.00019178,2]
[388518077,1759229444156,-3463.91,0.00019178,2]
[388518078,1759229444165,-3259.27,0.00019178,2]
[388518079,1759229444175,-2506.33,0.00019178,2]
[388518080,1759229444184,-4685.71,0.00019178,2]
[388518081,1759229444193,-1088.31,0.00019178,2]
[388518082,1759229444215,-500.0,0.00019178,2]
[388518083,1759229444224,-598.36,0.00019178,2]
[388518084,1759229444233,-4649.87,0.00019178,2]
[388518085,1759229444243,-602.56,0.00019178,2]
[388518086,1759229444253,-523.13,0.00019178,2]
[388518087,1759229444263,-3073.95,0.00019178,2]
[388518088,1759229444273,-500.0,0.00019178,2]
[388518089,1759229444283,-151.0,0.00019178,2]
[388518090,1759229444292,-151.0,0.00019178,2]
[388518091,1759229444302,-151.0,0.00019178,2]
[388518092,1759229444312,-151.0,0.00019178,2]
[388518093,1759229444321,-500.0,0.00019178,2]
[388518094,1759229444331,-500.0,0.00019178,2]
[388518095,1759229444340,-151.0,0.00019178,2]
[388518096,1759229444351,-151.0,0.00019178,2]
[388518097,1759229444360,-500.0,0.00019178,2]
[388518098,1759229444369,-521.6,0.00019178,2]
[388518099,1759229444379,-2450.25,0.00019178,2]
[388518100,1759229444388,-521.6,0.00019178,2]
[388518101,1759229444397,-521.6,0.00019178,2]
[388518102,1759229444407,-151.0,0.00019178,2]
[388518103,1759229444417,-521.6,0.00019178,2]
[388518104,1759229444429,-521.6,0.00019178,2]
[388518105,1759229444439,-2481.72,0.00019178,2]
[388518106,1759229444448,-1412.12,0.00019178,2]
[388518107,1759229444457,-500.0,0.00019178,2]
[388518108,1759229444467,-2968.53,0.00019178,2]
[388518109,1759229444476,-826.91,0.00019178,2]
[388518110,1759229444487,-764.2,0.00019178,2]
[388518111,1759229444496,-1241.56,0.00019178,2]
[388518112,1759229444506,-500.0,0.00019178,2]
[388518113,1759229444516,-151.0,0.00019178,2]
[388518114,1759229444525,-151.0,0.00019178,2]
[388518115,1759229444534,-500.0,0.00019178,2]
[388518116,1759229444550,-375.702876,0.00019178,2]
[388518117,1759229444559,-605.507827,0.00019178,2]
[388518118,1759229444571,-2160.11,0.00019178,2]
[388518119,1759229444583,-605.507827,0.00019178,2]
[388518120,1759229444593,-375.702876,0.00019178,2]
[388518121,1759229444603,-500.0,0.00019178,2]
[388518122,1759229444615,-1200.25,0.00019178,2]
[388518123,1759229444624,-500.0,0.00019178,2]
[388518124,1759229444634,-375.702876,0.00019178,2]
[388518125,1759229444643,-605.507827,0.00019178,2]
[388518126,1759229444653,-2154.97,0.00019178,2]
[388518127,1759229444663,-1171.24,0.00019178,2]
[388518128,1759229444673,-500.0,0.00019178,2]
[388518129,1759229444682,-375.702876,0.00019178,2]
[388518130,1759229444691,-605.507827,0.00019178,2]
[388518131,1759229444701,-500.0,0.00019178,2]
[388518132,1759229444710,-2206.26,0.00019178,2]
[388518133,1759229444719,-1995.22,0.00019178,2]
[388518134,1759229444728,-2228.521008,0.00019178,2]
[388518135,1759229444738,-650.180198,0.00019178,2]
[388518136,1759229444747,-1432.38,0.00019178,2]
[388518137,1759229444758,-500.0,0.00019178,2]
[388518138,1759229444768,-500.0,0.00019178,2]
[388518139,1759229444778,-151.0,0.00019178,2]
[388518140,1759229444788,-650.180198,0.00019178,2]
[388518141,1759229444798,-622.37,0.00019178,2]
[388518142,1759229444808,-661.8,0.00019178,2]
[388518143,1759229444818,-153.814194,0.00019178,2]
[388518144,1759229444830,-155.746312,0.00019178,2]
[388518145,1759229444841,-151.0,0.00019178,2]
[388518146,1759229444852,-650.180198,0.00019178,2]
[388518147,1759229444862,-691.79,0.00019178,2]
[388518148,1759229444872,-650.180198,0.00019178,2]
[388518149,1759229444882,-500.0,0.00019178,2]
[388518150,1759229444892,-500.0,0.00019178,2]
[388518151,1759229444902,-500.0,0.00019178,2]
[388518152,1759229444911,-577.51,0.00019178,2]
[388518153,1759229444921,-3282.66,0.00019178,2]
[388518154,1759229444930,-1616.85,0.00019178,2]
[388518155,1759229444940,-666.69,0.00019178,2]
[388518156,1759229444949,-500.0,0.00019178,2]
[388518157,1759229444960,-328.71516353,0.00019178,2]
[388518158,1759229444970,-500.0,0.00019178,2]
[388518159,1759229444979,-500.0,0.00019178,2]
[388518160,1759229444989,-151.0,0.00019178,2]
[388518161,1759229445000,-500.0,0.00019178,2]
[388518162,1759229445010,-500.0,0.00019178,2]
[388518163,1759229445021,-615.42,0.00019178,2]
[388518164,1759229445032,-151.0,0.00019178,2]
[388518165,1759229445045,-2021.85,0.00019178,2]
[388518166,1759229445056,-151.0,0.00019178,2]
[388518167,1759229445067,-1550.2,0.00019178,2]
[388518168,1759229445078,-2229.87,0.00019178,2]
[388518169,1759229445088,-500.0,0.00019178,2]
[388518170,1759229445099,-500.0,0.00019178,2]
[388518172,1759229445425,-1655.02,0.00019178,2]
[388518173,1759229445437,-738.25,0.00019178,2]
[388518174,1759229445447,-3307.9,0.00019178,2]
[388518175,1759229445458,-151.0,0.00019178,2]
[388518176,1759229445468,-773.49,0.00019178,2]
[388518177,1759229445478,-500.0,0.00019178,2]
[388518178,1759229445489,-1551.77,0.00019178,2]
[388518179,1759229445500,-500.0,0.00019178,2]
[388518180,1759229445510,-500.0,0.00019178,2]
[388518181,1759229445520,-500.0,0.00019178,2]
[388518182,1759229445530,-4597.52,0.00019178,2]
[388518183,1759229445544,-387.253914,0.00019178,2]
[388518184,1759229445554,-500.0,0.00019178,2]
[388518185,1759229445564,-387.253914,0.00019178,2]
[388518186,1759229445575,-3235.98,0.00019178,2]
[388518187,1759229445589,-1027.14,0.00019178,2]
[388518188,1759229445600,-561.98,0.00019178,2]
[388518189,1759229445613,-1597.79,0.00019178,2]
[388518190,1759229445626,-3653.34,0.00019178,2]
[388518191,1759229445637,-500.0,0.00019178,2]
[388518192,1759229445648,-387.253914,0.00019178,2]
[388518193,1759229445658,-3346.72,0.00019178,2]
[388518194,1759229445670,-151.0,0.00019178,2]
[388518195,1759229445683,-387.253914,0.00019178,2]
[388518196,1759229445694,-500.0,0.00019178,2]
[388518197,1759229445705,-3511.43,0.00019178,2]
[388518198,1759229445715,-151.0,0.00019178,2]
[388518199,1759229445726,-1160.62,0.00019178,2]
[388518200,1759229445737,-500.0,0.00019178,2]
[388518201,1759229445747,-500.0,0.00019178,2]
[388518202,1759229445758,-590.2,0.00019178,2]
[388518203,1759229445769,-3503.94,0.00019178,2]
[388518204,1759229445778,-4885.74,0.00019178,2]
[388518205,1759229445789,-611.18,0.00019178,2]
[388518206,1759229445798,-270.145292,0.00019178,2]
[388518207,1759229445807,-500.0,0.00019178,2]
[388518208,1759229445818,-270.145292,0.00019178,2]
[388518209,1759229445828,-1085.6,0.00019178,2]
[388518210,1759229445839,-3168.2,0.00019178,2]
[388518211,1759229445849,-500.0,0.00019178,2]
[388518212,1759229445859,-760.08,0.00019178,2]
[388518213,1759229445869,-270.145292,0.00019178,2]
[388518214,1759229445880,-3242.13,0.00019178,2]
[388518215,1759229445891,-5294.16041074,0.00019178,2]
[388518226,1759229446798,-476.83643344,0.00019178,2]
[388518227,1759229446810,-2062.89315582,0.00019178,2]
[388518228,1759229446819,-1114.26,0.00019178,2]
[388518229,1759229446829,-500.0,0.00019178,2]
[388518230,1759229446839,-151.0,0.00019178,2]
[388518231,1759229446849,-270.145292,0.00019178,2]
[388518232,1759229446858,-151.0,0.00019178,2]
[388518233,1759229446868,-151.0,0.00019178,2]
[388518234,1759229446877,-18.17646814,0.00019178,2]
[388518235,1759229448375,-481.82353186,0.00019178,2]
[388518236,1759229448385,-339.47216833,0.00019178,2]
[388518237,1759229448419,-424.45783167,0.00019178,2]
[388518238,1759229448428,-277.54216833,0.00019178,2]
[388518239,1759229448439,-222.45783167,0.00019178,2]
[388518240,1759229448448,-416.04216833,0.00019178,2]
[388518241,1759229448459,-2861.27783167,0.00019178,2]
[388518242,1759229448468,-752.74,0.00019178,2]
[388518243,1759229448477,-500.0,0.00019178,2]
[388518244,1759229448487,-500.0,0.00019178,2]